fUST/lending_fUST_20250210
["ID","MTS","AMOUNT","RATE_DAILY","PERIOD"]
[352547757,1739160658010,-500.0,0.0001178,2]
[352547758,1739160658019,-500.0,0.0001178,2]
[352547759,1739160658028,-500.0,0.0001178,2]
[352547760,1739160658038,-266.047095,0.00011817,2]
[352547761,1739160658047,-500.0,0.00011872,2]
[352547762,1739160658056,-500.0,0.00011872,2]
[352547763,1739160658067,-500.0,0.00011872,2]
[352547764,1739160658076,-251.70775413,0.00011872,2]
[352547765,1739160658086,-500.0,0.00011884,2]
[352547766,1739160658095,-508.44500603,0.00011884,2]
[352547767,1739160658105,-500.0,0.00011884,2]
[352547768,1739160658114,-163.67726063,0.00011884,2]
[352547769,1739160658123,-504.93731554,0.00011886,2]
[352547770,1739160658132,-500.0,0.00011886,2]
[352547771,1739160658141,-500.0,0.00011886,2]
[352547772,1739160658150,-500.40279845,0.00011888,2]
[352547773,1739160658159,-500.0,0.00011888,2]
[352547774,1739160658168,-527.43655362,0.00011888,2]
[352547775,1739160658177,-500.0,0.00011888,2]
[352547776,1739160658187,-500.59239481,0.00011888,2]
[352547777,1739160658196,-502.27251224,0.00011888,2]
[352547778,1739160658205,-500.0,0.00011888,2]
[352547779,1739160658214,-500.0,0.00011917,2]
[352547780,1739160658224,-500.0,0.00011917,2]
[352547781,1739160658233,-401.98145756,0.00011917,2]
[352547782,1739160658243,-563.2,0.00011917,2]
[352547783,1739160658253,-500.0,0.00011917,2]
[352547784,1739160658262,-536.64,0.00011917,2]
[352547785,1739160658272,-500.0,0.00011917,2]
[352547786,1739160658281,-392.36085054,0.00011917,2]
[352547787,1739160658290,-500.0,0.00011917,2]
[352547788,1739160658299,-500.0,0.00011917,2]
[352547789,1739160658308,-500.0,0.00011917,2]
[352547790,1739160658318,-500.0,0.00011917,2]
[352547791,1739160658326,-500.0,0.00011917,2]
[352547792,1739160658335,-500.0,0.00011917,2]
[352547793,1739160658345,-500.0,0.00011917,2]
[352547794,1739160658354,-500.0,0.00011917,2]
[352547795,1739160658363,-760.66,0.00011917,2]
[352547796,1739160658372,-500.0,0.00011917,2]
[352547797,1739160658381,-500.0,0.00011917,2]
[352547798,1739160658391,-500.0,0.00011917,2]
[352547799,1739160658400,-500.0,0.00011917,2]
[352547800,1739160658409,-500.0,0.00011917,2]
[352547801,1739160658419,-504.14001609,0.00011917,2]
[352547802,1739160658428,-605.21367859,0.00011917,2]
[352547803,1739160658437,-500.0,0.00011917,2]
[352547804,1739160658447,-500.0,0.00011917,2]
[352547805,1739160658456,-1288.46,0.00011917,2]
[352547806,1739160658465,-500.0,0.00011917,2]
[352547807,1739160658475,-500.0,0.00011917,2]
[352547808,1739160658484,-500.4,0.00011917,2]
[352547809,1739160658493,-622.5433876,0.00011917,2]
[352547810,1739160658502,-500.76,0.00011917,2]
[352547811,1739160658512,-870.45,0.00011917,2]
[352547812,1739160658521,-500.0,0.00011917,2]
[352547813,1739160658531,-500.0,0.00011917,2]
[352547814,1739160658540,-500.0,0.00011917,2]
[352547815,1739160658549,-500.0,0.00011917,2]
[352547816,1739160658559,-500.0,0.00011917,2]
[352547817,1739160658569,-2558.93,0.00011917,2]
[352547818,1739160658579,-2639.65,0.00011917,2]
[352547819,1739160658588,-2443.98,0.00011917,2]
[352547820,1739160658597,-1374.8,0.00011917,2]
[352547821,1739160658607,-526.61,0.00011917,2]
[352547822,1739160658616,-8699.74,0.00011917,2]
[352547823,1739160658625,-533.87,0.00011917,2]
[352547824,1739160658635,-827.74,0.00011917,2]
[352547825,1739160658644,-500.0,0.00011917,2]
[352547826,1739160658654,-500.0,0.00011917,2]
[352547827,1739160658663,-501.18,0.00011917,2]
[352547828,1739160658673,-500.0,0.00011917,2]
[352547829,1739160658683,-17220.76,0.00011917,2]
[352547830,1739160658692,-1150.96,0.00011917,2]
[352547831,1739160658702,-500.0,0.00011917,2]
[352547832,1739160658711,-758.85,0.00011917,2]
[352547833,1739160658721,-923.78,0.00011917,2]
[352547834,1739160658730,-500.0,0.00011917,2]
[352547835,1739160658739,-500.0,0.00011917,2]
[352547836,1739160658748,-500.0,0.00011917,2]
[352547837,1739160658758,-500.0,0.00011917,2]
[352547838,1739160658767,-1202.74,0.00011917,2]
[352547839,1739160658776,-1017.05,0.00011917,2]
[352547840,1739160658786,-500.0,0.00011917,2]
[352547841,1739160658795,-500.0,0.00011917,2]
[352547842,1739160658805,-480.24814645,0.00011917,2]
[352547843,1739160658814,-500.0,0.00011917,2]
[352547844,1739160658824,-1665.63,0.00011917,2]
[352547845,1739160658833,-500.0,0.00011917,2]
[352547846,1739160658842,-500.0,0.00011917,2]
[352547847,1739160658851,-500.0,0.00011917,2]
[352547848,1739160658861,-654.77,0.00011917,2]
[352547849,1739160658870,-500.0,0.00011917,2]
[352547850,1739160658879,-1690.77,0.00011917,2]
[352547851,1739160658889,-500.0,0.00011917,2]
[352547852,1739160658898,-500.0,0.00011917,2]
[352547853,1739160658908,-500.0,0.00011917,2]
[352547854,1739160658922,-779.06,0.00011917,2]
[352547855,1739160658931,-479.52863686,0.00011917,2]
[352547856,1739160658939,-801.13,0.00011917,2]
[352547857,1739160658948,-825.29,0.00011917,2]
[352547858,1739160658958,-692.33,0.00011917,2]
[352547859,1739160658967,-500.0,0.00011917,2]
[352547860,1739160658976,-500.0,0.00011917,2]
[352547861,1739160658985,-500.0,0.00011917,2]
[352547862,1739160658994,-500.0,0.00011917,2]
[352547863,1739160659004,-502.67727954,0.00011917,2]
[352547864,1739160659017,-500.0,0.00011917,2]
[352547865,1739160659027,-700.62,0.00011917,2]
[352547866,1739160659037,-500.0,0.00011917,2]
[352547867,1739160659046,-500.0,0.00011917,2]
[352547868,1739160659056,-558.21,0.00011917,2]
[352547869,1739160659066,-500.0,0.00011917,2]
[352547870,1739160659075,-500.0,0.00011917,2]
[352547871,1739160659086,-2174.82,0.00011917,2]
[352547872,1739160659095,-686.39,0.00011917,2]
[352547873,1739160659104,-745.53,0.00011917,2]
[352547874,1739160659113,-500.0,0.00011917,2]
[352547875,1739160659123,-500.0,0.00011917,2]
[352547876,1739160659132,-500.0,0.00011917,2]
[352547877,1739160659142,-4689.49,0.00011917,2]
[352547878,1739160659151,-519.49,0.00011917,2]
[352547879,1739160659161,-4246.4,0.00011917,2]
[352547880,1739160659171,-2277.09,0.00011917,2]
[352547881,1739160659180,-500.0,0.00011917,2]
[352547882,1739160659189,-500.0,0.00011917,2]
[352547883,1739160659199,-500.0,0.00011917,2]
[352547884,1739160659208,-500.0,0.00011917,2]
[352547885,1739160659217,-151.0,0.00012054,2]
[352547886,1739160659226,-500.0,0.00012054,2]
[352547887,1739160659236,-500.0,0.00012054,2]
[352547888,1739160659245,-563.2,0.00012054,2]
[352547889,1739160659254,-500.0,0.00012054,2]
[352547890,1739160659263,-536.64,0.00012054,2]
[352547891,1739160659272,-500.0,0.00012054,2]
[352547892,1739160659282,-500.0,0.00012054,2]
[352547893,1739160659291,-500.0,0.00012054,2]
[352547894,1739160659300,-500.0,0.00012054,2]
[352547895,1739160659309,-500.0,0.00012054,2]
[352547896,1739160659320,-168.66317829,0.00012054,2]
[352547897,1739160659329,-500.0,0.00012054,2]
[352547898,1739160659339,-500.0,0.00012054,2]
[352547899,1739160659348,-500.0,0.00012054,2]
[352547900,1739160659357,-760.66,0.00012054,2]
[352547901,1739160659366,-500.0,0.00012054,2]
[352547902,1739160659375,-500.0,0.00012054,2]
[352547903,1739160659384,-500.0,0.00012054,2]
[352547904,1739160659393,-506.65904746,0.00012054,2]
[352547905,1739160659402,-500.0,0.00012054,2]
[352547906,1739160659412,-500.0,0.00012054,2]
[352547907,1739160659421,-622.75,0.00012054,2]
[352547908,1739160659521,-1288.46,0.00012054,2]
[352547909,1739160659530,-500.0,0.00012054,2]
[352547910,1739160659539,-500.0,0.00012054,2]
[352547911,1739160659549,-500.4,0.00012054,2]
[352547912,1739160659559,-870.45,0.00012054,2]
[352547913,1739160659569,-271.62092571,0.00012054,2]
[352547914,1739160659579,-500.0,0.00012054,2]
[352547915,1739160659587,-500.0,0.00012054,2]
[352547916,1739160659597,-500.0,0.00012054,2]
[352547917,1739160659606,-520.60028929,0.00012054,2]
[352547918,1739160659615,-2558.93,0.00012054,2]
[352547919,1739160659624,-2639.65,0.00012054,2]
[352547920,1739160659634,-2443.98,0.00012054,2]
[352547921,1739160659643,-1374.8,0.00012054,2]
[352547922,1739160659652,-526.61,0.00012054,2]
[352547923,1739160659662,-8699.74,0.00012054,2]
[352547924,1739160659671,-533.87,0.00012054,2]
[352547925,1739160659681,-827.74,0.00012054,2]
[352547926,1739160659690,-500.0,0.00012054,2]
[352547927,1739160659699,-500.0,0.00012054,2]
[352547928,1739160659708,-501.18,0.00012054,2]
[352547929,1739160659718,-500.0,0.00012054,2]
[352547930,1739160659727,-17220.76,0.00012054,2]
[352547931,1739160659736,-1150.96,0.00012054,2]
[352547932,1739160659746,-500.0,0.00012054,2]
[352547933,1739160659755,-758.85,0.00012054,2]
[352547934,1739160659765,-923.78,0.00012054,2]
[352547935,1739160659774,-500.0,0.00012054,2]
[352547936,1739160659783,-500.0,0.00012054,2]
[352547937,1739160659793,-500.0,0.00012054,2]
[352547938,1739160659802,-500.0,0.00012054,2]
[352547939,1739160659812,-1202.74,0.00012054,2]
[352547940,1739160659822,-1017.05,0.00012054,2]
[352547941,1739160659831,-500.0,0.00012054,2]
[352547942,1739160659840,-596.01524834,0.00012054,2]
[352547943,1739160659849,-500.0,0.00012054,2]
[352547944,1739160659859,-1665.63,0.00012054,2]
[352547945,1739160659868,-500.0,0.00012054,2]
[352547946,1739160659877,-500.0,0.00012054,2]
[352547947,1739160659886,-500.0,0.00012054,2]
[352547948,1739160659895,-654.77,0.00012054,2]
[352547949,1739160659905,-500.0,0.00012054,2]
[352547950,1739160659914,-1690.77,0.00012054,2]
[352547951,1739160659923,-500.0,0.00012054,2]
[352547952,1739160659932,-500.0,0.00012054,2]
[352547953,1739160659942,-779.06,0.00012054,2]
[352547954,1739160659951,-529.4130135,0.00012054,2]
[352547955,1739160659960,-801.13,0.00012054,2]
[352547956,1739160659969,-825.29,0.00012054,2]
[352547957,1739160659978,-692.33,0.00012054,2]
[352547958,1739160659987,-500.0,0.00012054,2]
[352547959,1739160659996,-500.0,0.00012054,2]
[352547960,1739160660010,-500.0,0.00012054,2]
[352547961,1739160660019,-265.01161138,0.00012054,2]
[352547962,1739160660029,-500.0,0.00012054,2]
[352547963,1739160660039,-700.62,0.00012054,2]
[352547964,1739160660049,-500.0,0.00012054,2]
[352547965,1739160660060,-505.75463293,0.00012054,2]
[352547966,1739160660070,-558.21,0.00012054,2]
[352547967,1739160660080,-500.0,0.00012054,2]
[352547968,1739160660089,-500.0,0.00012054,2]
[352547969,1739160660099,-2174.82,0.00012054,2]
[352547970,1739160660109,-686.39,0.00012054,2]
[352547971,1739160660118,-745.53,0.00012054,2]
[352547972,1739160660127,-500.0,0.00012054,2]
[352547973,1739160660136,-500.0,0.00012054,2]
[352547974,1739160660146,-500.0,0.00012054,2]
[352547975,1739160660155,-4689.49,0.00012054,2]
[352547976,1739160660165,-519.49,0.00012054,2]
[352547977,1739160660175,-4246.4,0.00012054,2]
[352547978,1739160660185,-2277.09,0.00012054,2]
[352547979,1739160660194,-500.0,0.00012054,2]
[352547980,1739160660204,-500.0,0.00012054,2]
[352547981,1739160660213,-500.0,0.00012054,2]
[352547982,1739160660223,-500.0,0.00012054,2]
[352547983,1739160660232,-1000.0,0.0001216,2]
[352547984,1739160660241,-151.0,0.00012191,2]
[352547985,1739160660250,-542.40963216,0.00012191,2]
[352547986,1739160660259,-500.0,0.00012191,2]
[352547987,1739160660269,-563.2,0.00012191,2]
[352547988,1739160660279,-500.0,0.00012191,2]
[352547989,1739160660288,-536.64,0.00012191,2]
[352547990,1739160660298,-500.0,0.00012191,2]
[352547991,1739160660308,-500.0,0.00012191,2]
[352547992,1739160660318,-500.0,0.00012191,2]
[352547993,1739160660328,-500.0,0.00012191,2]
[352547994,1739160660337,-500.0,0.00012191,2]
[352547995,1739160660347,-500.0,0.00012191,2]
[352547996,1739160660357,-500.0,0.00012191,2]
[352547997,1739160660366,-500.0,0.00012191,2]
[352547998,1739160660375,-760.66,0.00012191,2]
[352547999,1739160660384,-230.95769513,0.00012191,2]
[352548000,1739160660394,-500.0,0.00012191,2]
[352548001,1739160660404,-500.0,0.00012191,2]
[352548002,1739160660413,-500.0,0.00012191,2]
[352548003,1739160660423,-500.0,0.00012191,2]
[352548004,1739160660432,-1288.46,0.00012191,2]
[352548005,1739160660441,-500.0,0.00012191,2]
[352548006,1739160660451,-327.31765265,0.00012191,2]
[352548007,1739160660461,-500.4,0.00012191,2]
[352548008,1739160660470,-870.45,0.00012191,2]
[352548009,1739160660480,-500.0,0.00012191,2]
[352548010,1739160660489,-500.0,0.00012191,2]
[352548011,1739160660499,-551.9984504,0.00012191,2]
[352548012,1739160660507,-2558.93,0.00012191,2]
[352548013,1739160660517,-2639.65,0.00012191,2]
[352548014,1739160660527,-2443.98,0.00012191,2]
[352548015,1739160660535,-1374.8,0.00012191,2]
[352548016,1739160660545,-526.61,0.00012191,2]
[352548017,1739160660554,-8699.74,0.00012191,2]
[352548018,1739160660564,-533.87,0.00012191,2]
[352548019,1739160660574,-827.74,0.00012191,2]
[352548020,1739160660583,-500.0,0.00012191,2]
[352548021,1739160660593,-500.0,0.00012191,2]
[352548022,1739160660602,-501.18,0.00012191,2]
[352548023,1739160660612,-500.0,0.00012191,2]
[352548024,1739160660621,-17220.76,0.00012191,2]
[352548025,1739160660631,-1150.96,0.00012191,2]
[352548026,1739160660640,-510.10829942,0.00012191,2]
[352548027,1739160660649,-758.85,0.00012191,2]
[352548028,1739160660658,-923.78,0.00012191,2]
[352548029,1739160660667,-500.0,0.00012191,2]
[352548030,1739160660677,-500.0,0.00012191,2]
[352548031,1739160660687,-500.0,0.00012191,2]
[352548032,1739160660696,-500.0,0.00012191,2]
[352548033,1739160660705,-1202.74,0.00012191,2]
[352548034,1739160660715,-1017.05,0.00012191,2]
[352548035,1739160660724,-500.0,0.00012191,2]
[352548036,1739160660733,-500.0,0.00012191,2]
[352548037,1739160660743,-1665.63,0.00012191,2]
[352548038,1739160660753,-500.0,0.00012191,2]
[352548039,1739160660762,-500.0,0.00012191,2]
[352548040,1739160660771,-500.0,0.00012191,2]
[352548041,1739160660781,-654.77,0.00012191,2]
[352548042,1739160660790,-389.42993362,0.00012191,2]
[352548043,1739160660800,-1690.77,0.00012191,2]
[352548044,1739160660808,-247.28050055,0.00012191,2]
[352548045,1739160660818,-500.0,0.00012191,2]
[352548046,1739160660828,-779.06,0.00012191,2]
[352548047,1739160660838,-801.13,0.00012191,2]
[352548048,1739160660847,-825.29,0.00012191,2]
[352548049,1739160660856,-692.33,0.00012191,2]
[352548050,1739160660866,-500.0,0.00012191,2]
[352548051,1739160660875,-500.0,0.00012191,2]
[352548052,1739160660884,-500.0,0.00012191,2]
[352548053,1739160660893,-500.0,0.00012191,2]
[352548054,1739160660902,-700.62,0.00012191,2]
[352548055,1739160660912,-500.0,0.00012191,2]
[352548056,1739160660921,-558.21,0.00012191,2]
[352548057,1739160660930,-500.0,0.00012191,2]
[352548058,1739160660940,-500.0,0.00012191,2]
[352548059,1739160660949,-2174.82,0.00012191,2]
[352548060,1739160660958,-686.39,0.00012191,2]
[352548061,1739160660967,-745.53,0.00012191,2]
[352548062,1739160660977,-516.62,0.00012191,2]
[352548063,1739160660986,-500.0,0.00012191,2]
[352548064,1739160660995,-500.0,0.00012191,2]
[352548065,1739160661004,-4689.49,0.00012191,2]
[352548066,1739160661017,-519.49,0.00012191,2]
[352548067,1739160661026,-4246.4,0.00012191,2]
[352548068,1739160661036,-2277.09,0.00012191,2]
[352548069,1739160661045,-552.94213255,0.00012191,2]
[352548070,1739160661055,-500.0,0.00012191,2]
[352548071,1739160661064,-151.0,0.000122,2]
[352548072,1739160661073,-151.0,0.000123,2]
[352548073,1739160661082,-500.0,0.00012328,2]
[352548074,1739160661093,-563.2,0.00012328,2]
[352548075,1739160661103,-500.0,0.00012328,2]
[352548076,1739160661112,-536.64,0.00012328,2]
[352548077,1739160661122,-500.0,0.00012328,2]
[352548078,1739160661131,-500.0,0.00012328,2]
[352548079,1739160661140,-500.0,0.00012328,2]
[352548080,1739160661150,-500.0,0.00012328,2]
[352548081,1739160661159,-500.0,0.00012328,2]
[352548082,1739160661168,-500.0,0.00012328,2]
[352548083,1739160661177,-500.0,0.00012328,2]
[352548084,1739160661187,-546.78943482,0.00012328,2]
[352548085,1739160661195,-760.66,0.00012328,2]
[352548086,1739160661204,-500.0,0.00012328,2]
[352548087,1739160661214,-500.0,0.00012328,2]
[352548088,1739160661222,-500.0,0.00012328,2]
[352548089,1739160661231,-500.0,0.00012328,2]
[352548090,1739160661240,-1288.46,0.00012328,2]
[352548091,1739160661250,-646.69536164,0.00012328,2]
[352548092,1739160661259,-500.4,0.00012328,2]
[352548093,1739160661269,-870.45,0.00012328,2]
[352548094,1739160661279,-500.0,0.00012328,2]
[352548095,1739160661288,-500.0,0.00012328,2]
[352548096,1739160661297,-2558.93,0.00012328,2]
[352548097,1739160661308,-2639.65,0.00012328,2]
[352548098,1739160661317,-2443.98,0.00012328,2]
[352548099,1739160661327,-1374.8,0.00012328,2]
[352548100,1739160661336,-526.61,0.00012328,2]
[352548101,1739160661346,-8699.74,0.00012328,2]
[352548102,1739160661355,-533.87,0.00012328,2]
[352548103,1739160661365,-827.74,0.00012328,2]
[352548104,1739160661374,-500.0,0.00012328,2]
[352548105,1739160661384,-500.0,0.00012328,2]
[352548106,1739160661393,-501.18,0.00012328,2]
[352548107,1739160661403,-500.0,0.00012328,2]
[352548108,1739160661503,-17220.76,0.00012328,2]
[352548109,1739160661512,-1150.96,0.00012328,2]
[352548110,1739160661522,-758.85,0.00012328,2]
[352548111,1739160661531,-923.78,0.00012328,2]
[352548112,1739160661541,-500.0,0.00012328,2]
[352548113,1739160661550,-500.0,0.00012328,2]
[352548114,1739160661560,-161.24409204,0.00012328,2]
[352548115,1739160661571,-500.0,0.00012328,2]
[352548116,1739160661582,-1002.06562998,0.00012328,2]
[352548117,1739160661756,-200.67437002,0.00012328,2]
[352548118,1739160661766,-1017.05,0.00012328,2]
[352548119,1739160661776,-500.0,0.00012328,2]
[352548120,1739160661785,-500.0,0.00012328,2]
[352548121,1739160661795,-1665.63,0.00012328,2]
[352548122,1739160661804,-500.0,0.00012328,2]
[352548123,1739160661814,-500.0,0.00012328,2]
[352548124,1739160661825,-500.0,0.00012328,2]
[352548125,1739160661834,-654.77,0.00012328,2]
[352548126,1739160661843,-1690.77,0.00012328,2]
[352548127,1739160661852,-500.0,0.00012328,2]
[352548128,1739160661862,-779.06,0.00012328,2]
[352548129,1739160661871,-801.13,0.00012328,2]
[352548130,1739160661881,-825.29,0.00012328,2]
[352548131,1739160661891,-692.33,0.00012328,2]
[352548132,1739160661900,-500.0,0.00012328,2]
[352548133,1739160661909,-500.0,0.00012328,2]
[352548134,1739160661918,-500.0,0.00012328,2]
[352548135,1739160661928,-500.0,0.00012328,2]
[352548136,1739160661938,-700.62,0.00012328,2]
[352548137,1739160661948,-500.0,0.00012328,2]
[352548138,1739160661958,-558.21,0.00012328,2]
[352548139,1739160661968,-500.0,0.00012328,2]
[352548140,1739160661977,-500.0,0.00012328,2]
[352548141,1739160661987,-2174.82,0.00012328,2]
[352548142,1739160661996,-686.39,0.00012328,2]
[352548143,1739160662006,-745.53,0.00012328,2]
[352548144,1739160662021,-500.0,0.00012328,2]
[352548145,1739160662031,-500.0,0.00012328,2]
[352548146,1739160662040,-4689.49,0.00012328,2]
[352548147,1739160662050,-519.49,0.00012328,2]
[352548148,1739160662060,-4246.4,0.00012328,2]
[352548149,1739160662070,-2277.09,0.00012328,2]
[352548150,1739160662080,-500.0,0.00012328,2]
[352548151,1739160662090,-266.04709492,0.00012408,2]
[352548152,1739160662099,-411.6878396,0.0001242,2]
[352548153,1739160662108,-507.88802541,0.0001242,2]
[352548154,1739160662118,-503.21350288,0.0001242,2]
[352548155,1739160662127,-1000.0,0.00012432,2]
[352548156,1739160662136,-1000.0,0.00012432,2]
[352548157,1739160662145,-360.60598572,0.00012434,2]
[352548158,1739160662154,-1500.0,0.00012434,2]
[352548159,1739160662163,-500.0,0.00012436,2]
[352548160,1739160662173,-500.0,0.00012436,2]
[352548161,1739160662182,-1000.0,0.00012436,2]
[352548162,1739160662192,-151.0,0.00012465,2]
[352548163,1739160662201,-500.0,0.00012465,2]
[352548164,1739160662210,-563.2,0.00012465,2]
[352548165,1739160662219,-500.0,0.00012465,2]
[352548166,1739160662228,-536.64,0.00012465,2]
[352548167,1739160662238,-453.7103243,0.00012465,2]
[352548168,1739160662247,-500.0,0.00012465,2]
[352548169,1739160662257,-500.0,0.00012465,2]
[352548170,1739160662268,-500.0,0.00012465,2]
[352548171,1739160662286,-500.0,0.00012465,2]
[352548172,1739160662303,-500.0,0.00012465,2]
[352548173,1739160662316,-500.0,0.00012465,2]
[352548174,1739160662333,-760.66,0.00012465,2]
[352548175,1739160662349,-500.0,0.00012465,2]
[352548176,1739160662363,-500.0,0.00012465,2]
[352548177,1739160662381,-500.0,0.00012465,2]
[352548178,1739160662395,-500.0,0.00012465,2]
[352548179,1739160662409,-1288.46,0.00012465,2]
[352548180,1739160662424,-500.4,0.00012465,2]
[352548181,1739160662438,-870.45,0.00012465,2]
[352548182,1739160662451,-500.0,0.00012465,2]
[352548183,1739160662464,-500.0,0.00012465,2]
[352548184,1739160662477,-2558.93,0.00012465,2]
[352548185,1739160662493,-2639.65,0.00012465,2]
[352548186,1739160662508,-2443.98,0.00012465,2]
[352548187,1739160662522,-1374.8,0.00012465,2]
[352548188,1739160662538,-526.61,0.00012465,2]
[352548189,1739160662549,-8699.74,0.00012465,2]
[352548190,1739160662560,-533.87,0.00012465,2]
[352548191,1739160662577,-827.74,0.00012465,2]
[352548192,1739160662592,-500.0,0.00012465,2]
[352548193,1739160662604,-500.0,0.00012465,2]
[352548194,1739160662617,-501.18,0.00012465,2]
[352548195,1739160662630,-500.0,0.00012465,2]
[352548196,1739160662641,-17220.76,0.00012465,2]
[352548197,1739160662654,-1150.96,0.00012465,2]
[352548198,1739160662667,-758.85,0.00012465,2]
[352548199,1739160662680,-923.78,0.00012465,2]
[352548200,1739160662693,-500.0,0.00012465,2]
[352548201,1739160662706,-500.0,0.00012465,2]
[352548202,1739160662719,-500.0,0.00012465,2]
[352548203,1739160662732,-1202.74,0.00012465,2]
[352548204,1739160662744,-1017.05,0.00012465,2]
[352548205,1739160662757,-500.0,0.00012465,2]
[352548206,1739160662769,-500.0,0.00012465,2]
[352548207,1739160662782,-1665.63,0.00012465,2]
[352548208,1739160662795,-500.0,0.00012465,2]
[352548209,1739160662807,-500.0,0.00012465,2]
[352548210,1739160662821,-500.0,0.00012465,2]
[352548211,1739160662833,-654.77,0.00012465,2]
[352548212,1739160662846,-1690.77,0.00012465,2]
[352548213,1739160662859,-500.0,0.00012465,2]
[352548214,1739160662872,-779.06,0.00012465,2]
[352548215,1739160662884,-801.13,0.00012465,2]
[352548216,1739160662894,-825.29,0.00012465,2]
[352548217,1739160662904,-692.33,0.00012465,2]
[352548218,1739160662913,-500.0,0.00012465,2]
[352548219,1739160662923,-500.0,0.00012465,2]
[352548220,1739160662932,-500.0,0.00012465,2]
[352548221,1739160662941,-700.62,0.00012465,2]
[352548222,1739160662951,-500.0,0.00012465,2]
[352548223,1739160662960,-558.21,0.00012465,2]
[352548224,1739160662969,-500.0,0.00012465,2]
[352548225,1739160662979,-500.0,0.00012465,2]
[352548226,1739160662988,-2174.82,0.00012465,2]
[352548227,1739160662998,-686.39,0.00012465,2]
[352548228,1739160663009,-745.53,0.00012465,2]
[352548229,1739160663020,-500.0,0.00012465,2]
[352548230,1739160663030,-500.0,0.00012465,2]
[352548231,1739160663040,-4689.49,0.00012465,2]
[352548232,1739160663051,-4246.4,0.00012465,2]
[352548233,1739160663060,-519.49,0.00012465,2]
[352548234,1739160663070,-2277.09,0.00012465,2]
[352548235,1739160663080,-531.26523494,0.00012522,2]
[352548236,1739160663091,-151.0,0.00012602,2]
[352548237,1739160663100,-500.0,0.00012602,2]
[352548238,1739160663110,-563.2,0.00012602,2]
[352548239,1739160663119,-500.0,0.00012602,2]
[352548240,1739160663129,-536.64,0.00012602,2]
[352548241,1739160663139,-500.0,0.00012602,2]
[352548242,1739160663148,-500.0,0.00012602,2]
[352548243,1739160663158,-500.0,0.00012602,2]
[352548244,1739160663167,-180.40828471,0.00012602,2]
[352548245,1739160663177,-500.0,0.00012602,2]
[352548246,1739160663188,-500.0,0.00012602,2]
[352548247,1739160663198,-760.66,0.00012602,2]
[352548248,1739160663208,-500.0,0.00012602,2]
[352548249,1739160663218,-500.0,0.00012602,2]
[352548250,1739160663228,-500.0,0.00012602,2]
[352548251,1739160663238,-500.0,0.00012602,2]
[352548252,1739160663247,-1288.46,0.00012602,2]
[352548253,1739160663258,-500.4,0.00012602,2]
[352548254,1739160663268,-870.45,0.00012602,2]
[352548255,1739160663278,-500.0,0.00012602,2]
[352548256,1739160663288,-500.0,0.00012602,2]